fUST/lending_fUST_20240824
["ID","MTS","AMOUNT","RATE_DAILY","PERIOD"]
[335755056,1724478642283,-500.0,0.00013698,2]
[335755057,1724478642294,-1926.24,0.00013698,2]
[335755058,1724478642306,-6310.03,0.00013698,2]
[335755059,1724478642316,-865.07,0.00013698,2]
[335755060,1724478642326,-2293.22,0.00013698,2]
[335755061,1724478642336,-907.7,0.00013698,2]
[335755062,1724478642345,-500.0,0.00013698,2]
[335755063,1724478642355,-500.0,0.00013698,2]
[335755064,1724478642366,-500.0,0.00013698,2]
[335755065,1724478642376,-500.0,0.00013698,2]
[335755066,1724478642385,-780.4,0.00013698,2]
[335755067,1724478642394,-1297.68,0.00013698,2]
[335755068,1724478642405,-500.0,0.00013698,2]
[335755069,1724478642415,-500.0,0.00013698,2]
[335755070,1724478642424,-662.09,0.00013698,2]
[335755071,1724478642434,-500.0,0.00013698,2]
[335755072,1724478642443,-518.46,0.00013698,2]
[335755073,1724478642454,-500.0,0.00013698,2]
[335755074,1724478642464,-500.0,0.00013698,2]
[335755075,1724478642474,-500.0,0.00013698,2]
[335755076,1724478642484,-631.11,0.00013698,2]
[335755077,1724478642494,-3557.48,0.00013698,2]
[335755078,1724478642503,-3474.97,0.00013698,2]
[335755079,1724478642513,-500.0,0.00013698,2]
[335755080,1724478642522,-566.76,0.00013698,2]
[335755081,1724478642532,-500.0,0.00013698,2]
[335755082,1724478642541,-713.98,0.00013698,2]
[335755083,1724478642551,-500.0,0.00013698,2]
[335755084,1724478642561,-708.01,0.00013698,2]
[335755085,1724478642570,-628.22,0.00013698,2]
[335755086,1724478642579,-869.41,0.00013698,2]
[335755087,1724478642590,-500.0,0.00013698,2]
[335755088,1724478642600,-852.42,0.00013698,2]
[335755089,1724478642609,-500.0,0.00013698,2]
[335755090,1724478642620,-821.3,0.00013698,2]
[335755091,1724478642631,-703.92,0.00013698,2]
[335755092,1724478642642,-500.0,0.00013698,2]
[335755093,1724478642654,-2145.4,0.00013698,2]
[335755094,1724478642664,-1116.74,0.00013698,2]
[335755095,1724478642673,-933.27,0.00013698,2]
[335755096,1724478642683,-3413.06,0.00013698,2]
[335755097,1724478642694,-9124.38,0.00013698,2]
[335755098,1724478642704,-298.95432508,0.00013698,2]
[335755099,1724478642713,-981.48,0.00013698,2]
[335755100,1724478642722,-500.0,0.00013698,2]
[335755101,1724478642732,-724.02,0.00013698,2]
[335755102,1724478642741,-5965.28,0.00013698,2]
[335755103,1724478642751,-8249.59,0.00013698,2]
[335755104,1724478642761,-500.0,0.00013698,2]
[335755105,1724478642771,-500.0,0.00013698,2]
[335755106,1724478642781,-500.0,0.00013698,2]
[335755107,1724478642791,-599.44,0.00013698,2]
[335755108,1724478642801,-500.0,0.00013698,2]
[335755109,1724478642810,-1010.64,0.00013698,2]
[335755110,1724478642820,-609.1,0.00013698,2]
[335755111,1724478642829,-500.3351258,0.00013698,2]
[335755112,1724478642838,-202.25023143,0.00013698,2]
[335755113,1724478642848,-500.0,0.00013698,2]
[335755114,1724478642858,-500.0,0.00013698,2]
[335755115,1724478642872,-500.0,0.00013698,2]
[335755116,1724478642882,-966.95,0.00013698,2]
[335755117,1724478642891,-500.0,0.00013698,2]
[335755118,1724478642901,-500.0,0.00013698,2]
[335755119,1724478642911,-500.36419857,0.00013698,2]
[335755120,1724478642922,-729.16,0.00013698,2]
[335755121,1724478642931,-500.0,0.00013698,2]
[335755122,1724478642941,-500.0,0.00013698,2]
[335755123,1724478642951,-520.91,0.00013698,2]
[335755124,1724478642961,-10521.99,0.00013698,2]
[335755125,1724478642970,-528.43,0.00013698,2]
[335755126,1724478642980,-864.08,0.00013698,2]
[335755127,1724478642990,-2390.43,0.00013698,2]
[335755128,1724478643000,-500.0,0.00013698,2]
[335755129,1724478643010,-500.0,0.00013698,2]
[335755130,1724478643019,-954.27,0.00013698,2]
[335755131,1724478643028,-500.0,0.00013698,2]
[335755132,1724478643038,-500.0,0.00013698,2]
[335755133,1724478643047,-500.0,0.00013698,2]
[335755134,1724478643057,-500.0,0.00013698,2]
[335755136,1724478643066,-21000.36,0.00013698,2]
[335755137,1724478643075,-745.68,0.00013698,2]
[335755138,1724478643085,-582.85,0.00013698,2]
[335755139,1724478643095,-500.0,0.00013698,2]
[335755140,1724478643104,-1396.82,0.00013698,2]
[335755141,1724478643114,-764.94,0.00013698,2]
[335755143,1724478643124,-500.0,0.00013698,2]
[335755144,1724478643134,-500.0,0.00013698,2]
[335755148,1724478643143,-500.0,0.00013698,2]
[335755150,1724478643153,-500.0,0.00013698,2]
[335755151,1724478643162,-500.0,0.00013698,2]
[335755152,1724478643172,-500.0,0.00013698,2]
[335755153,1724478643181,-500.0,0.00013698,2]
[335755154,1724478643192,-460.68712452,0.00013698,2]
[335755155,1724478643201,-500.0,0.00013698,2]
[335755156,1724478643211,-500.0,0.00013698,2]
[335755157,1724478643221,-532.59,0.00013698,2]
[335755158,1724478643230,-658.87,0.00013698,2]
[335755159,1724478643240,-500.0,0.00013698,2]
[335755160,1724478643249,-500.0,0.00013698,2]
[335755161,1724478643259,-500.0,0.00013698,2]
[335755162,1724478643269,-500.0,0.00013698,2]
[335755165,1724478643279,-339.66,0.00013698,2]
[335755166,1724478643459,-386.26596182,0.00013698,2]
[335755167,1724478643469,-500.0,0.00013698,2]
[335755168,1724478643479,-992.94,0.00013698,2]
[335755169,1724478643489,-500.0,0.00013698,2]
[335755170,1724478643500,-4734.16,0.00013698,2]
[335755172,1724478643511,-500.0,0.00013698,2]
[335755173,1724478643521,-1057.22,0.00013698,2]
[335755174,1724478643531,-500.0,0.00013698,2]
[335755175,1724478643542,-500.0,0.00013698,2]
[335755176,1724478643553,-901.14,0.00013698,2]
[335755177,1724478643563,-561.59264497,0.00013698,2]
[335755178,1724478643572,-1440.3,0.00013698,2]
[335755179,1724478643582,-815.84,0.00013698,2]
[335755180,1724478643594,-500.0,0.00013698,2]
[335755181,1724478643604,-500.0,0.00013698,2]
[335755182,1724478643615,-500.0,0.00013698,2]
[335755183,1724478643626,-1500.44,0.00013698,2]
[335755184,1724478643636,-5324.9,0.00013698,2]
[335755185,1724478643647,-535.73,0.00013698,2]
[335755186,1724478643657,-2519.0,0.00013698,2]
[335755187,1724478643667,-1911.86,0.00013698,2]
[335755188,1724478643677,-704.07,0.00013698,2]
[335755189,1724478643686,-160.24409503,0.00013698,2]
[335755190,1724478643696,-3302.61,0.00013698,2]
[335755191,1724478643705,-500.0,0.00013698,2]
[335755192,1724478643715,-542.64,0.00013698,2]
[335755193,1724478643725,-305.24911577,0.00013698,2]
[335755194,1724478643734,-500.0,0.00013698,2]
[335755195,1724478643744,-1064.86,0.00013698,2]
[335755196,1724478643755,-500.0,0.00013698,2]
[335755197,1724478643765,-592.07,0.00013698,2]
[335755198,1724478643775,-500.0,0.00013698,2]
[335755199,1724478643786,-553.58,0.00013698,2]
[335755200,1724478643798,-1882.3,0.00013698,2]
[335755201,1724478643809,-500.0,0.00013698,2]
[335755202,1724478643819,-2876.0,0.00013698,2]
[335755203,1724478643829,-500.0,0.00013698,2]
[335755204,1724478643840,-500.0,0.00013698,2]
[335755205,1724478643851,-500.0,0.00013698,2]
[335755206,1724478643867,-500.0,0.00013698,2]
[335755207,1724478643877,-500.0,0.00013698,2]
[335755208,1724478643887,-500.0,0.00013698,2]
[335755209,1724478643896,-610.03,0.00013698,2]
[335755210,1724478643905,-500.0,0.00013698,2]
[335755211,1724478643917,-661.51,0.00013698,2]
[335755212,1724478643926,-822.14,0.00013698,2]
[335755213,1724478643936,-10332.39,0.00013698,2]
[335755214,1724478643946,-1051.86,0.00013698,2]
[335755215,1724478643958,-2017.2,0.00013698,2]
[335755216,1724478643968,-500.0,0.00013698,2]
[335755217,1724478643977,-516.03,0.00013698,2]
[335755218,1724478643988,-1204.24,0.00013698,2]
[335755219,1724478643997,-500.0,0.00013698,2]
[335755220,1724478644008,-500.0,0.00013698,2]
[335755221,1724478644019,-1306.95,0.00013698,2]
[335755222,1724478644029,-3369.82,0.00013698,2]
[335755223,1724478644039,-500.0,0.00013698,2]
[335755224,1724478644049,-500.0,0.00013698,2]
[335755225,1724478644060,-4861.42,0.00013698,2]
[335755226,1724478644071,-2171.05,0.00013698,2]
[335755227,1724478644081,-500.0,0.00013698,2]
[335755228,1724478644091,-500.0,0.00013698,2]
[335755229,1724478644100,-1351.34,0.00013698,2]
[335755230,1724478644111,-732.89,0.00013698,2]
[335755231,1724478644122,-500.0,0.00013698,2]
[335755232,1724478644133,-871.43,0.00013698,2]
[335755233,1724478644142,-13489.51,0.00013698,2]
[335755234,1724478644155,-500.0,0.00013698,2]
[335755235,1724478644165,-597.27,0.00013698,2]
[335755236,1724478644176,-500.0,0.00013698,2]
[335755237,1724478644185,-20458.98,0.00013698,2]
[335755238,1724478644195,-692.72,0.00013698,2]
[335755239,1724478644205,-741.25,0.00013698,2]
[335755240,1724478644216,-206.16780181,0.00013698,2]
[335755241,1724478644226,-500.0,0.00013698,2]
[335755242,1724478644237,-500.0,0.00013698,2]
[335755243,1724478644247,-500.0,0.00013698,2]
[335755244,1724478644258,-2254.77,0.00013698,2]
[335755245,1724478644268,-500.0,0.00013698,2]
[335755246,1724478644278,-500.0,0.00013698,2]
[335755247,1724478644289,-500.0,0.00013698,2]
[335755248,1724478644299,-500.0,0.00013698,2]
[335755249,1724478644308,-500.0,0.00013698,2]
[335755250,1724478644318,-500.0,0.00013698,2]
[335755251,1724478644328,-500.0,0.00013698,2]
[335755252,1724478644337,-500.0,0.00013698,2]
[335755253,1724478644347,-500.0,0.00013698,2]
[335755254,1724478644359,-646.93,0.00013698,2]
[335755255,1724478644370,-500.0,0.00013698,2]
[335755256,1724478644382,-500.0,0.00013698,2]
[335755257,1724478644392,-2078.99,0.00013698,2]
[335755258,1724478644404,-500.0,0.00013698,2]
[335755259,1724478644415,-554.91,0.00013698,2]
[335755260,1724478644425,-500.0,0.00013698,2]
[335755261,1724478644437,-3007.15,0.00013698,2]
[335755262,1724478644448,-500.0,0.00013698,2]
[335755263,1724478644459,-832.7,0.00013698,2]
[335755264,1724478644470,-2157.62,0.00013698,2]
[335755265,1724478644480,-500.0,0.00013698,2]
[335755266,1724478644489,-2621.18,0.00013698,2]
[335755267,1724478644500,-10164.51,0.00013698,2]
[335755268,1724478644511,-1710.98,0.00013698,2]
[335755269,1724478644521,-500.0,0.00013698,2]
[335755270,1724478644531,-500.0,0.00013698,2]
[335755271,1724478644540,-500.0,0.00013698,2]
[335755272,1724478644550,-2220.17,0.00013698,2]
[335755273,1724478644559,-1628.29,0.00013698,2]
[335755274,1724478644568,-500.0,0.00013698,2]
[335755275,1724478644577,-500.0,0.00013698,2]
[335755276,1724478644586,-2320.51,0.00013698,2]
[335755277,1724478644595,-500.0,0.00013698,2]
[335755278,1724478644605,-500.0,0.00013698,2]
[335755279,1724478644614,-1437.69,0.00013698,2]
[335755280,1724478644624,-500.0,0.00013698,2]
[335755281,1724478644634,-717.61,0.00013698,2]
[335755282,1724478644643,-500.0,0.00013698,2]
[335755283,1724478644652,-826.82,0.00013698,2]
[335755284,1724478644661,-393.31312517,0.00013698,2]
[335755285,1724478644671,-500.0,0.00013698,2]
[335755286,1724478644680,-500.0,0.00013698,2]
[335755287,1724478644689,-1919.9,0.00013698,2]
[335755288,1724478644699,-500.51934936,0.00013698,2]
[335755289,1724478644708,-500.0,0.00013698,2]
[335755290,1724478644718,-500.0,0.00013698,2]
[335755291,1724478644728,-500.0,0.00013698,2]
[335755292,1724478644737,-500.0,0.00013698,2]
[335755293,1724478644747,-157.13881865,0.00013698,2]
[335755294,1724478644756,-500.0,0.00013698,2]
[335755295,1724478644765,-990.99,0.00013698,2]
[335755296,1724478644775,-500.0,0.00013698,2]
[335755297,1724478644785,-1932.1,0.00013698,2]
[335755298,1724478644794,-500.32916369,0.00013698,2]
[335755299,1724478644804,-1984.97,0.00013698,2]
[335755300,1724478644813,-500.0,0.00013698,2]
[335755301,1724478644823,-1767.46,0.00013698,2]
[335755302,1724478644832,-500.0,0.00013698,2]
[335755303,1724478644842,-500.0,0.00013698,2]
[335755304,1724478644852,-11909.39,0.00013698,2]
[335755305,1724478644863,-500.0,0.00013698,2]
[335755306,1724478644876,-500.0,0.00013698,2]
[335755307,1724478644887,-500.0,0.00013698,2]
[335755308,1724478644897,-500.0,0.00013698,2]
[335755309,1724478644907,-654.88,0.00013698,2]
[335755310,1724478644918,-987.1,0.00013698,2]
[335755311,1724478644928,-524.10641745,0.00013698,2]
[335755312,1724478644938,-1036.31,0.00013698,2]
[335755313,1724478644949,-501.35155916,0.00013698,2]
[335755314,1724478644960,-500.0,0.00013698,2]
[335755315,1724478644970,-4611.35,0.00013698,2]
[335755316,1724478644980,-253.09911784,0.00013698,2]
[335755317,1724478644990,-1896.83,0.00013698,2]
[335755318,1724478645001,-500.0,0.00013698,2]
[335755319,1724478645012,-500.0,0.00013698,2]
[335755320,1724478645022,-500.0,0.00013698,2]
[335755321,1724478645032,-600.0,0.00013698,2]
[335755322,1724478645042,-680.96,0.00013698,2]
[335755323,1724478645053,-500.0,0.00013698,2]
[335755324,1724478645063,-1644.94,0.00013698,2]
[335755325,1724478645073,-663.31,0.00013698,2]
[335755326,1724478645083,-500.0,0.00013698,2]
[335755327,1724478645093,-500.0,0.00013698,2]
[335755328,1724478645103,-532.07,0.00013698,2]
[335755329,1724478645113,-500.0,0.00013698,2]
[335755330,1724478645126,-626.08,0.00013698,2]
[335755331,1724478645136,-824.05,0.00013698,2]
[335755332,1724478645145,-981.08,0.00013698,2]
[335755333,1724478645155,-3421.37,0.00013698,2]
[335755334,1724478645164,-745.05,0.00013698,2]
[335755335,1724478645173,-1342.09,0.00013698,2]
[335755336,1724478645182,-6223.08,0.00013698,2]
[335755337,1724478645192,-500.0,0.00013698,2]
[335755338,1724478645202,-519.67,0.00013698,2]
[335755339,1724478645212,-1303.58,0.00013698,2]
[335755340,1724478645222,-1874.3,0.00013698,2]
[335755341,1724478645231,-1874.3,0.00013698,2]
[335755342,1724478645241,-1874.3,0.00013698,2]
[335755343,1724478645250,-1874.3,0.00013698,2]
[335755344,1724478645260,-1874.3,0.00013698,2]
[335755345,1724478645269,-1874.3,0.00013698,2]
[335755346,1724478645279,-500.0,0.00013698,2]
[335755347,1724478645289,-1874.3,0.00013698,2]
[335755348,1724478645299,-1874.3,0.00013698,2]
[335755349,1724478645310,-500.0,0.00013698,2]
[335755350,1724478645320,-1874.3,0.00013698,2]
[335755351,1724478645329,-500.0,0.00013698,2]
[335755352,1724478645338,-1874.3,0.00013698,2]
[335755353,1724478645348,-1874.3,0.00013698,2]
[335755354,1724478645358,-505.43898382,0.00013698,2]
[335755355,1724478645368,-1874.3,0.00013698,2]
[335755356,1724478645377,-1874.3,0.00013698,2]
[335755357,1724478645387,-1874.3,0.00013698,2]
[335755358,1724478645398,-500.0,0.00013698,2]
[335755359,1724478645408,-3698.2,0.00013698,2]
[335755360,1724478645418,-1513.12,0.00013698,2]
[335755361,1724478645427,-1513.12,0.00013698,2]
[335755362,1724478645437,-1513.12,0.00013698,2]
[335755363,1724478645447,-1513.12,0.00013698,2]
[335755364,1724478645457,-1513.12,0.00013698,2]
[335755365,1724478645466,-500.0,0.00013698,2]
[335755366,1724478645475,-1513.12,0.00013698,2]
[335755367,1724478645484,-1513.12,0.00013698,2]
[335755368,1724478645494,-258.10822085,0.00013698,2]
[335755369,1724478645503,-1513.12,0.00013698,2]
[335755370,1724478645513,-1513.12,0.00013698,2]
[335755371,1724478645522,-1513.12,0.00013698,2]
[335755372,1724478645531,-500.0,0.00013698,2]
[335755373,1724478645540,-1513.12,0.00013698,2]
[335755374,1724478645550,-1513.12,0.00013698,2]
[335755375,1724478645559,-843.24,0.00013698,2]
[335755376,1724478645568,-1513.12,0.00013698,2]
[335755377,1724478645579,-843.24,0.00013698,2]
[335755378,1724478645588,-1513.12,0.00013698,2]
[335755379,1724478645597,-843.24,0.00013698,2]
[335755380,1724478645606,-1513.12,0.00013698,2]
[335755381,1724478645616,-843.24,0.00013698,2]
[335755382,1724478645626,-1513.12,0.00013698,2]
[335755383,1724478645636,-843.24,0.00013698,2]
[335755384,1724478645645,-843.24,0.00013698,2]
[335755385,1724478645654,-843.24,0.00013698,2]
[335755386,1724478645663,-843.24,0.00013698,2]
[335755387,1724478645672,-565.68,0.00013698,2]
[335755388,1724478645681,-711.82,0.00013698,2]
[335755389,1724478645690,-843.24,0.00013698,2]
[335755390,1724478645700,-13683.05,0.00013698,2]
[335755391,1724478645710,-843.24,0.00013698,2]
[335755392,1724478645719,-843.24,0.00013698,2]
[335755393,1724478645727,-500.0,0.00013698,2]
[335755394,1724478645737,-843.24,0.00013698,2]
[335755395,1724478645746,-843.24,0.00013698,2]
[335755396,1724478645755,-843.24,0.00013698,2]
[335755397,1724478645765,-500.0,0.00013698,2]
[335755398,1724478645774,-974.87,0.00013698,2]
[335755399,1724478645783,-1090.91,0.00013698,2]
[335755400,1724478645793,-500.0,0.00013698,2]
[335755401,1724478645802,-500.0,0.00013698,2]
[335755402,1724478645812,-388.01515087,0.00013698,2]
[335755403,1724478645821,-507.97,0.00013698,2]
[335755404,1724478645830,-1252.249933,0.00013699,2]
[335755405,1724478645839,-3000.0,0.00013699,2]
[335755406,1724478645849,-1787.17416588,0.00013699,2]
[335755407,1724478645859,-1787.17416588,0.00013699,2]
[335755408,1724478645873,-1787.17416588,0.00013699,2]
[335755409,1724478645882,-1787.17416588,0.00013699,2]
[335755410,1724478645891,-1787.17416588,0.00013699,2]
[335755411,1724478645900,-1787.17416588,0.00013699,2]
[335755412,1724478645911,-1787.17416588,0.00013699,2]
[335755413,1724478645920,-1787.17416588,0.00013699,2]
[335755414,1724478645930,-1787.17416588,0.00013699,2]
[335755415,1724478645941,-580.15841339,0.00013699,2]
[335755416,1724478645952,-194.91980144,0.00013699,2]
[335755417,1724478645961,-932.39745014,0.00013699,2]
[335755418,1724478645971,-932.39745014,0.00013699,2]
[335755419,1724478645981,-932.39745014,0.00013699,2]
[335755420,1724478645990,-932.39745014,0.00013699,2]
[335755421,1724478646000,-932.39745014,0.00013699,2]
[335755422,1724478646009,-932.39745014,0.00013699,2]
[335755423,1724478646019,-932.39745014,0.00013699,2]
[335755424,1724478646028,-932.39745014,0.00013699,2]
[335755425,1724478646037,-932.39745014,0.00013699,2]
[335755426,1724478646047,-932.39745014,0.00013699,2]
[335755427,1724478646056,-932.39745014,0.00013699,2]
[335755428,1724478646067,-932.39745014,0.00013699,2]
[335755429,1724478646079,-932.39745014,0.00013699,2]
[335755430,1724478646090,-932.39745013,0.00013699,2]
[335755431,1724478646102,-150.112233,0.000137,2]
[335755432,1724478646113,-150.112233,0.000137,2]
[335755433,1724478646125,-409.212231,0.000137,2]
[335755434,1724478646134,-150.112233,0.000137,2]
[335755436,1724478646145,-150.112233,0.000137,2]
[335755438,1724478646155,-153.0,0.0001377,2]
[335755440,1724478646165,-153.0,0.0001377,2]
[335755442,1724478646176,-153.0,0.0001377,2]
[335755443,1724478646185,-153.0,0.0001377,2]
[335755444,1724478646194,-153.0,0.0001377,2]
[335755445,1724478646204,-153.0,0.0001377,2]
[335755446,1724478646213,-153.0,0.0001377,2]
[335755447,1724478646222,-153.0,0.0001377,2]
[335755448,1724478646231,-153.0,0.0001377,2]
[335755449,1724478646242,-153.0,0.0001377,2]
[335755450,1724478646251,-153.0,0.0001377,2]
[335755451,1724478646260,-153.0,0.0001377,2]
[335755452,1724478646269,-153.0,0.0001377,2]
[335755453,1724478646278,-153.0,0.0001377,2]
[335755454,1724478646287,-153.0,0.0001377,2]
[335755455,1724478646296,-153.0,0.0001377,2]
[335755456,1724478646305,-153.0,0.0001377,2]
[335755457,1724478646314,-153.0,0.0001377,2]
[335755458,1724478646323,-153.0,0.0001377,2]
[335755459,1724478646333,-153.0,0.0001377,2]
[335755460,1724478646342,-153.0,0.0001377,2]
[335755461,1724478646353,-153.0,0.0001377,2]
[335755462,1724478646362,-153.0,0.0001377,2]
[335755463,1724478646371,-153.0,0.0001377,2]
[335755464,1724478646380,-153.0,0.0001377,2]
[335755465,1724478646389,-153.0,0.0001377,2]
[335755466,1724478646399,-153.0,0.0001377,2]
[335755467,1724478646408,-153.0,0.0001377,2]
[335755468,1724478646417,-153.0,0.0001377,2]
[335755469,1724478646427,-153.0,0.0001377,2]
[335755470,1724478646436,-153.0,0.0001377,2]
[335755471,1724478646445,-153.0,0.0001377,2]
[335755472,1724478646455,-153.0,0.0001377,2]
[335755473,1724478646464,-153.0,0.0001377,2]
[335755474,1724478646473,-153.0,0.0001377,2]
[335755475,1724478646482,-153.0,0.0001377,2]
[335755476,1724478646492,-153.0,0.0001377,2]
[335755477,1724478646501,-153.0,0.0001377,2]
[335755478,1724478646509,-153.0,0.0001377,2]
[335755479,1724478646518,-153.0,0.0001377,2]
[335755480,1724478646528,-153.0,0.0001377,2]
[335755481,1724478646536,-153.0,0.0001377,2]
[335755482,1724478646546,-153.0,0.0001377,2]
[335755488,1724478646713,-153.0,0.0001377,2]
[335755489,1724478646723,-153.0,0.0001377,2]
[335755490,1724478646733,-153.0,0.0001377,2]
[335755491,1724478646743,-153.0,0.0001377,2]
[335755492,1724478646754,-153.0,0.0001377,2]
[335755493,1724478646764,-248.0,0.0001377,2]
[335755494,1724478646775,-248.0,0.0001377,2]
[335755495,1724478646786,-248.0,0.0001377,2]
[335755496,1724478646796,-248.0,0.0001377,2]
[335755497,1724478646807,-248.0,0.0001377,2]
[335755498,1724478646818,-248.0,0.0001377,2]
[335755499,1724478646828,-248.0,0.0001377,2]
[335755500,1724478646839,-248.0,0.0001377,2]
[335755501,1724478646851,-248.0,0.0001377,2]
[335755502,1724478646863,-248.0,0.0001377,2]
[335755503,1724478646875,-248.0,0.0001377,2]
[335755504,1724478646886,-248.0,0.0001377,2]
[335755505,1724478646896,-248.0,0.0001377,2]
[335755506,1724478646907,-248.0,0.0001377,2]
[335755507,1724478646918,-248.0,0.0001377,2]
[335755508,1724478646928,-248.0,0.0001377,2]
[335755509,1724478646939,-248.0,0.0001377,2]
[335755510,1724478646952,-248.0,0.0001377,2]
[335755511,1724478646963,-248.0,0.0001377,2]
[335755512,1724478646973,-248.0,0.0001377,2]
[335755513,1724478646982,-248.0,0.0001377,2]
[335755514,1724478646992,-248.0,0.0001377,2]
[335755515,1724478647001,-248.0,0.0001377,2]
[335755516,1724478647010,-248.0,0.0001377,2]
[335755517,1724478647019,-248.0,0.0001377,2]
[335755518,1724478647028,-248.0,0.0001377,2]
[335755519,1724478647037,-248.0,0.0001377,2]
[335755520,1724478647047,-248.0,0.0001377,2]
[335755521,1724478647057,-248.0,0.0001377,2]
[335755522,1724478647066,-248.0,0.0001377,2]
[335755523,1724478647075,-248.0,0.0001377,2]
[335755524,1724478647084,-248.0,0.0001377,2]
[335755525,1724478647093,-248.0,0.0001377,2]
[335755526,1724478647102,-248.0,0.0001377,2]
[335755527,1724478647111,-248.0,0.0001377,2]
[335755528,1724478647121,-248.0,0.0001377,2]
[335755529,1724478647130,-248.0,0.0001377,2]
[335755530,1724478647141,-248.0,0.0001377,2]
[335755531,1724478647152,-248.0,0.0001377,2]
[335755532,1724478647162,-248.0,0.0001377,2]
[335755533,1724478647171,-248.0,0.0001377,2]
[335755534,1724478647180,-248.0,0.0001377,2]
[335755535,1724478647189,-132.25404249,0.00013771,2]
[335755536,1724478647202,-153.0,0.00013771,2]
[335755537,1724478647211,-153.0,0.00013771,2]
[335755538,1724478647219,-153.0,0.00013771,2]
[335755539,1724478647228,-153.0,0.00013771,2]
[335755540,1724478647238,-153.0,0.00013771,2]
[335755541,1724478647247,-153.0,0.00013771,2]
[335755542,1724478647257,-247.0,0.00013771,2]
[335755543,1724478647266,-247.0,0.00013771,2]
[335755544,1724478647276,-247.0,0.00013771,2]
[335755545,1724478647285,-247.0,0.00013771,2]
[335755546,1724478647294,-247.0,0.00013771,2]
[335755547,1724478647303,-247.0,0.00013771,2]
[335755548,1724478647312,-247.0,0.00013771,2]
[335755549,1724478647321,-247.0,0.00013771,2]
[335755550,1724478647330,-247.0,0.00013771,2]
[335755551,1724478647340,-247.0,0.00013771,2]
[335755552,1724478647349,-247.0,0.00013771,2]
[335755553,1724478647358,-247.0,0.00013771,2]
[335755554,1724478647368,-247.0,0.00013771,2]
[335755555,1724478647377,-247.0,0.00013771,2]
[335755556,1724478647387,-153.0,0.00013776,2]
[335755557,1724478647398,-153.0,0.00013776,2]
[335755558,1724478647409,-153.0,0.00013776,2]
[335755559,1724478647421,-153.0,0.00013776,2]
[335755560,1724478647431,-153.0,0.00013776,2]
[335755561,1724478647441,-153.0,0.00013776,2]
[335755562,1724478647453,-153.0,0.00013776,2]
[335755563,1724478647463,-153.0,0.00013776,2]
[335755564,1724478647472,-153.0,0.00013776,2]
[335755565,1724478647482,-153.0,0.00013776,2]
[335755566,1724478647493,-153.0,0.00013776,2]
[335755567,1724478647502,-153.0,0.00013776,2]
[335755568,1724478647512,-153.0,0.00013776,2]
[335755569,1724478647522,-153.0,0.00013776,2]
[335755570,1724478647533,-153.0,0.00013776,2]
[335755571,1724478647545,-153.0,0.00013776,2]
[335755572,1724478647556,-153.0,0.00013776,2]
[335755573,1724478647566,-153.0,0.00013776,2]